bitfinex/quotes_ETHUSD_20250130
["timestamp","ask_amount","ask_price","bid_price","bid_amount"]
[1738200947323,0.07997274,3154.0,3153.4,3.17116]
[1738200947495,0.07997274,3154.0,3152.9,6.17913]
[1738200947496,3.17092,3153.7,3153.0,3.17156]
[1738200947692,3.17092,3153.7,3153.1,0.393426]
[1738200947887,0.079824,3153.6,3153.1,0.393426]
[1738200948318,3.17076,3153.9,3153.2,3.17129]
[1738200948489,0.07975162,3153.5,3153.2,3.17129]
[1738200948690,3.17078,3153.8,3153.1,0.393426]
[1738200948899,0.07971443,3153.4,3153.1,0.393426]
[1738200949106,3.1709,3153.7,3153.1,0.393426]
[1738200949317,0.07967724,3153.3,3153.0,3.17156]
[1738200949503,3.1709,3153.7,3153.0,3.17156]
[1738200949705,0.07964004,3153.2,3152.7,0.03901369]
[1738200950011,3.1706,3154.0,3153.1,3.17148]
[1738200950213,0.8256,3154.1,3153.1,3.17148]
[1738200950525,3.17069,3153.9,3153.2,3.17136]
[1738200950727,0.8256,3154.1,3153.7,3.17081]
[1738200950890,0.8256,3154.1,3153.6,3.17089]
[1738200951722,0.8256,3154.1,3153.5,3.17107]
[1738200951909,0.7573,3154.5,3153.6,0.0075]
[1738200952125,3.16977,3154.8,3154.2,3.1703]
[1738200952328,3.92698,3154.9,3154.2,3.1703]
[1738200952508,3.16978,3154.8,3154.2,3.1703]
[1738200952704,3.16978,3154.8,3154.0,3.17056]
[1738200953525,3.16978,3154.8,3153.8,3.17075]
[1738200953733,3.16989,3154.7,3154.1,3.17046]
[1738200954530,3.16997,3154.6,3154.0,3.17057]
[1738200956330,3.17023,3154.4,3153.8,3.17077]
[1738200956828,3.16997,3154.6,3153.8,3.17077]
[1738200957037,3.16997,3154.6,3153.9,3.487687]
[1738200957831,3.17008,3154.5,3153.9,3.487687]
[1738200957996,3.93759,3154.3,3153.5,0.396957]
[1738200958202,3.17084,3153.8,3153.2,3.17137]
[1738200958397,3.17058,3154.0,3153.4,3.17115]
[1738200959012,3.17058,3154.0,3153.2,3.17137]
[1738200959239,3.17084,3153.8,3153.2,3.17137]
[1738200959412,3.17096,3153.7,3153.0,3.99094]
[1738200959617,3.17096,3153.7,3153.1,3.399094]
[1738200960246,3.17084,3153.8,3153.2,3.17135]
[1738200960911,3.17057,3154.1,3153.4,3.17115]
[1738200961111,3.17067,3154.0,3153.2,3.17135]
[1738200961311,1.3248,3154.3,3153.1,3.399094]
[1738200961540,3.93831,3153.6,3153.0,0.8194]
[1738200961707,3.93831,3153.6,3152.9,3.17165]
[1738200962035,3.1708,3153.8,3153.1,3.17146]
[1738200962240,3.1708,3153.8,3152.7,0.85841369]
[1738200962241,3.17047,3154.2,3153.5,3.99402]
[1738200962400,0.07958401,3153.7,3153.6,3.17097]
[1738200962607,3.17034,3154.3,3153.6,3.887469]
[1738200962937,0.079401,3153.7,3153.6,3.887469]
[1738200963138,3.17038,3154.2,3153.6,3.887469]
[1738200963345,0.794,3154.4,3154.0,3.17056]
[1738200963515,0.0795497,3154.1,3153.8,3.17075]
[1738200963722,3.17013,3154.5,3153.8,3.5594749]
[1738200963921,0.07956533,3154.0,3153.8,3.5594749]
[1738200964240,3.17013,3154.5,3153.9,3.17066]
[1738200964441,3.9313,3154.6,3154.0,3.17054]
[1738200964642,3.16981,3154.8,3154.0,3.17054]
[1738200964946,3.96657,3154.9,3154.3,3.17023]
[1738200965244,3.96657,3154.9,3154.2,3.17029]
[1738200965911,3.16985,3154.8,3154.0,3.17055]
[1738200966324,3.16998,3154.6,3154.0,3.17055]
[1738200967422,3.16998,3154.6,3153.8,3.17075]
[1738200967620,0.8242,3154.2,3153.7,3.0]
[1738200967955,0.8242,3154.2,3153.2,3.17134]
[1738200968115,3.17084,3153.8,3153.0,3.17157]
[1738200968524,0.8076,3153.7,3153.0,3.17157]
[1738200968832,3.17106,3153.6,3153.0,3.569667]
[1738200970659,3.17126,3153.4,3152.7,0.03901369]
[1738200970858,3.17138,3153.2,3152.7,0.03901369]
[1738200971072,3.17138,3153.2,3152.7,3.21088369]
[1738200971216,3.17157,3153.1,3152.7,0.03901369]
[1738200971420,3.17158,3153.0,3152.7,0.03901369]
[1738200971971,3.17178,3152.8,3152.7,0.03901369]
[1738200972780,3.806116,3152.8,3152.7,0.03901369]
[1738200972989,3.17178,3152.8,3152.7,0.03901369]
[1738200973139,4.51318,3152.8,3152.7,0.03901369]
[1738200973461,0.7756,3152.0,3151.5,3.0]
[1738200973661,0.7756,3152.0,3151.4,3.4809324]
[1738200973822,0.7756,3152.0,3151.5,0.66541924]
[1738200974020,0.7756,3152.0,3151.4,3.6541024]
[1738200974217,3.17209,3152.5,3151.9,3.17265]
[1738200974218,0.7756,3152.4,3151.9,3.17265]
[1738200974423,0.526,3152.4,3151.9,3.17265]
[1738200974635,0.526,3152.4,3151.5,3.17308]
[1738200974866,3.1722,3152.4,3151.5,3.17308]
[1738200975037,3.48942,3152.4,3151.5,3.17308]
[1738200975234,3.1725,3152.1,3151.5,3.17308]
[1738200975651,3.1725,3152.1,3151.3,3.17328]
[1738200975652,3.17235,3152.3,3151.6,3.17297]
[1738200976169,0.31722,3152.4,3151.4,3.17312]
[1738200976357,3.1725,3152.1,3151.4,3.17312]
[1738200976688,3.1723,3152.3,3151.3,3.17328]
[1738200976991,3.17241,3152.2,3151.5,3.17301]
[1738200977465,0.8223,3152.0,3151.3,3.17324]
[1738200977691,0.8223,3152.0,3150.9,0.7874]
[1738200977871,0.07290124,3151.9,3151.7,3.17285]
[1738200978093,0.07290124,3151.9,3151.8,3.17279]
[1738200978587,0.07290124,3151.9,3151.8,3.807354]
[1738200978749,0.07290124,3151.9,3151.8,41.807354]
[1738200978946,0.7686,3152.8,3151.8,38.634564]
[1738200979150,0.7686,3152.8,3152.5,3.17204]
[1738200979335,0.7686,3152.8,3152.5,3.172]
[1738200979534,3.0,3153.2,3152.7,3.17188]
[1738200979535,0.7683,3153.2,3152.7,3.17188]
[1738200979792,0.7683,3153.2,3152.8,3.17175]
[1738200979936,0.7683,3153.2,3152.9,3.17165]
[1738200980137,0.7909,3153.4,3152.9,3.17165]
[1738200980385,0.7909,3153.4,3152.7,3.17187]
[1738200980538,3.17138,3153.2,3152.5,3.48927]
[1738200980738,0.7909,3153.4,3153.0,3.17151]
[1738200981057,3.17138,3153.2,3152.6,3.520837]
[1738200981261,3.17176,3152.9,3152.1,3.17242]
[1738200981571,0.7806,3152.9,3152.1,3.17242]
[1738200981734,3.17185,3152.8,3152.1,3.17242]
[1738200981941,0.7806,3152.9,3152.2,3.17232]
[1738200982139,0.7806,3152.9,3151.9,3.92346]
[1738200982384,3.17207,3152.6,3151.9,3.17266]
[1738200982552,0.317207,3152.6,3151.9,3.17266]
[1738200982753,0.7743,3152.4,3151.1,0.823]
[1738200982961,3.17265,3152.0,3151.4,3.17316]
[1738200983172,3.17252,3152.1,3151.5,3.17307]
[1738200983480,3.17259,3152.0,3151.4,3.17316]
[1738200984880,0.7911,3151.7,3151.2,3.17337]
[1738200985059,0.7911,3151.7,3151.3,3.17328]
[1738200986275,0.7911,3151.7,3151.1,3.17345]
[1738200986470,0.7911,3151.7,3151.2,3.17337]
[1738200986661,0.7911,3151.7,3151.3,3.17328]
[1738200986863,0.7911,3151.7,3151.4,3.17314]
[1738200987846,3.17242,3152.2,3151.6,3.17299]
[1738200988053,3.94029,3152.0,3151.4,3.17314]
[1738200988348,4.49929,3150.5,3150.4,0.03912702]
[1738200988550,4.49929,3150.5,3149.1,0.8055]
[1738200988551,3.17473,3149.9,3149.2,3.17537]
[1738200988867,4.716617,3150.5,3148.7,3.17582]
[1738200988868,3.17508,3149.6,3149.0,3.1756]
[1738200989068,3.1751,3149.5,3148.8,0.8055]
[1738200989276,3.1749,3149.7,3148.8,3.9813]
[1738200989590,3.1752,3149.4,3148.8,3.17581]
[1738200989762,3.1752,3149.4,3148.8,0.317581]
[1738200989964,3.1752,3149.4,3148.6,3.17597]
[1738200990192,0.0075,3149.7,3148.5,3.17609]
[1738200990366,0.5575,3149.7,3148.4,0.8055]
[1738200990684,3.17502,3149.6,3148.8,3.17573]
[1738200990881,3.17511,3149.5,3148.8,3.17573]
[1738200991088,3.17493,3149.7,3148.9,3.17563]
[1738200991294,3.17493,3149.7,3149.0,3.1756]
[1738200991654,0.7677,3149.8,3149.2,3.17536]
[1738200991856,0.7677,3149.8,3148.9,3.17571]
[1738200992084,0.7677,3149.8,3149.5,3.17503]
[1738200992288,0.7677,3149.8,3149.3,3.17529]
[1738200992451,0.06877914,3149.7,3149.1,3.17549]
[1738200992789,0.7921,3150.3,3149.5,3.1751]
[1738200993168,0.06684078,3150.2,3149.6,3.17492]
[1738200993777,0.06684078,3150.2,3150.0,3.17452]
[1738200994095,3.96602,3150.7,3149.8,3.17478]
[1738200994385,3.17411,3150.5,3149.8,3.17478]
[1738200994591,0.7921,3150.7,3149.9,3.17469]
[1738200994785,3.17401,3150.6,3149.9,3.17469]
[1738200995188,0.06717141,3150.5,3150.0,3.17459]
[1738200995488,3.17401,3150.6,3150.0,3.17459]
[1738200995696,0.06716239,3150.4,3150.0,3.17459]
[1738200995859,3.17401,3150.6,3150.0,3.17459]
[1738200996188,0.06712513,3150.3,3149.8,3.17474]
[1738200996388,0.7921,3150.7,3149.8,0.634955]
[1738200996554,3.96604,3150.7,3150.0,3.1746]
[1738200996750,7.14001,3150.7,3150.0,3.1746]
[1738200996997,0.06723689,3150.6,3150.0,3.1746]
[1738200997367,0.06723689,3150.6,3150.4,3.17412]
[1738200997691,3.17362,3151.0,3150.2,3.17436]
[1738200997987,3.1738,3150.8,3150.2,3.809253]
[1738200998188,3.17402,3150.6,3149.8,3.17472]
[1738200998492,3.23993684,3150.5,3149.8,3.17472]
[1738200998792,6.41412684,3150.5,3149.7,3.17486]
[1738200999156,0.7921,3150.4,3149.6,3.17498]
[1738200999353,0.0657378,3150.3,3149.9,3.17461]
[1738200999856,0.0657378,3150.3,3150.0,3.1745]
[1738201000057,0.0657378,3150.3,3150.2,3.1744]
[1738201000293,3.96571,3151.0,3150.3,3.17424]
[1738201000468,0.7921,3151.0,3150.5,3.17406]
[1738201000869,0.7921,3151.0,3150.3,6.34847]
[1738201001069,0.7921,3151.0,3150.3,3.17423]
[1738201001483,3.9657,3151.0,3150.3,3.17423]
[1738201001788,0.7921,3151.0,3150.3,0.634871]
[1738201001990,0.7921,3151.0,3150.3,3.17424]
[1738201002217,0.7921,3151.0,3149.7,0.317498]
[1738201002369,3.17421,3150.4,3149.2,0.8005]
[1738201002695,3.17483,3149.8,3149.2,3.97586]
[1738201003011,3.17442,3150.2,3149.6,3.17494]
[1738201003225,3.1742,3150.4,3149.7,3.17486]
[1738201003497,3.17432,3150.3,3149.6,3.17494]
[1738201003793,3.17441,3150.2,3149.6,3.17494]
[1738201004518,3.17417,3150.5,3149.8,3.17477]
[1738201004860,3.17417,3150.5,3149.9,3.17462]
[1738201005061,3.17391,3150.7,3149.8,3.17477]
[1738201005256,3.17391,3150.7,3150.0,3.17458]
[1738201005610,3.17383,3150.8,3150.2,3.17437]
[1738201005780,3.17378,3150.9,3149.9,3.17461]
[1738201006120,3.17427,3150.4,3149.7,3.1749]
[1738201006689,3.1738,3150.8,3150.2,3.17432]
[1738201006895,0.0075,3151.0,3150.1,3.1744]
[1738201007298,3.17402,3150.6,3149.9,3.17469]
[1738201007503,0.06533148,3150.5,3149.9,3.17469]
[1738201007691,3.1742,3150.4,3149.7,3.17489]
[1738201007887,0.06525699,3150.3,3149.7,3.17489]
[1738201008399,0.06525699,3150.3,3149.8,3.17479]
[1738201008784,0.06525699,3150.3,3149.9,3.17461]
[1738201009293,3.1741,3150.5,3149.8,3.17479]
[1738201009602,0.06529424,3150.4,3149.8,3.17479]
[1738201010376,0.06529424,3150.4,3149.9,3.17469]
[1738201010582,0.06529424,3150.4,3149.8,3.17479]
[1738201011017,0.06529424,3150.4,3150.0,3.17455]
[1738201011519,3.1738,3150.8,3150.0,3.17455]
[1738201011520,0.06528872,3150.3,3150.0,3.17455]
[1738201011887,3.17402,3150.6,3150.0,3.17455]
[1738201012103,0.06536675,3150.5,3150.0,3.17455]
[1738201012480,0.06536675,3150.5,3150.1,3.17449]
[1738201012808,3.1739,3150.7,3150.1,3.17449]
[1738201013001,0.0653295,3150.4,3150.2,3.17437]
[1738201013197,3.17381,3150.8,3150.1,3.17449]
[1738201013513,3.17248,3152.1,3150.8,3.17371]
[1738201013838,3.17326,3151.4,3150.8,3.17371]
[1738201014033,3.0075,3151.9,3150.4,3.17418]
[1738201014175,3.17348,3151.2,3150.4,3.17418]
[1738201014376,3.17362,3151.0,3150.2,3.17438]
[1738201014606,3.1738,3150.8,3150.0,3.17459]
[1738201014822,3.17358,3151.1,3149.3,3.0]
[1738201015043,3.17375,3150.9,3150.3,3.17421]
[1738201015483,3.17386,3150.8,3150.1,3.17446]
[1738201015697,3.17375,3150.9,3150.2,3.17433]
[1738201015898,3.808477,3150.9,3150.2,3.17433]
[1738201016365,3.1738,3150.8,3150.2,3.17433]
[1738201016559,3.17389,3150.7,3149.9,3.17462]
[1738201016833,3.17422,3150.4,3149.8,3.17478]
[1738201017009,3.17402,3150.6,3148.8,3.17573]
[1738201017010,3.17468,3150.0,3149.3,3.17525]
[1738201017338,3.1748,3149.8,3149.2,3.17531]
[1738201017504,3.17468,3150.0,3149.2,3.17531]
[1738201017505,3.17468,3150.0,3149.4,3.17519]
[1738201017706,3.17443,3150.2,3149.4,3.17519]
[1738201017904,3.17443,3150.2,3149.6,3.17498]
[1738201018237,3.864297,3150.2,3149.6,3.17495]
[1738201018434,0.689867,3150.2,3149.7,3.17488]
[1738201018609,3.0,3150.4,3149.8,3.17475]
[1738201018813,3.0,3150.8,3149.6,3.17495]
[1738201019029,3.0,3150.8,3148.7,3.0]
[1738201019030,3.17458,3150.1,3149.4,3.17517]
[1738201019212,3.1744,3150.2,3149.4,3.17517]
[1738201019426,0.55,3150.3,3149.6,3.17491]
[1738201019753,3.17473,3149.9,3149.2,3.17533]
[1738201019915,3.17493,3149.7,3149.0,3.17554]
[1738201020119,3.17508,3149.6,3149.0,3.17554]
[1738201020519,3.17493,3149.7,3149.1,3.1755]
[1738201021624,3.17478,3149.9,3149.1,3.1755]
[1738201021820,3.1745,3150.1,3149.5,3.17505]
[1738201022020,3.1745,3150.1,3149.3,3.1752]
[1738201022217,3.17483,3149.8,3149.1,3.17544]
[1738201022418,3.17483,3149.8,3149.2,3.17536]
[1738201022632,0.05643259,3149.7,3149.1,6.35089]
[1738201022971,0.37955885,3149.7,3148.9,3.17569]
[1738201023265,3.17501,3149.6,3148.9,3.17569]
[1738201023465,0.05560591,3149.5,3149.1,3.1755]
[1738201023677,0.05560591,3149.5,3149.2,3.1754]
[1738201023834,3.17483,3149.8,3149.0,3.17554]
[1738201024022,0.05558027,3149.4,3148.9,3.17566]
[1738201024349,3.1756,3149.1,3148.4,3.1762]
[1738201024572,3.17563,3149.0,3148.4,3.1762]
[1738201024774,3.17574,3148.9,3148.2,3.17635]
[1738201025117,0.05551423,3148.8,3148.0,0.03915685]
[1738201025318,3.1761,3148.6,3148.0,0.03915685]
[1738201025564,3.17588,3148.8,3148.0,3.21573685]
[1738201025565,0.05537429,3148.5,3148.0,3.21573685]
[1738201025768,0.05537429,3148.5,3148.4,3.17621]
[1738201025979,3.17541,3149.2,3148.4,3.17621]
[1738201026117,0.05509513,3148.5,3148.4,3.17621]
[1738201026323,3.17567,3149.0,3148.4,3.17621]
[1738201026545,0.05494775,3148.9,3148.5,3.17611]
[1738201026924,3.17579,3148.9,3148.1,0.46771784]
[1738201027159,0.8415824,3148.8,3148.1,0.46771784]
[1738201027379,0.8415824,3148.8,3148.0,3.21575685]
[1738201027727,0.7867,3148.5,3148.0,0.03915685]
[1738201028059,0.05448663,3148.4,3148.0,0.03915685]
[1738201028626,0.05448663,3148.4,3148.0,3.21571685]
[1738201030580,0.05448663,3148.4,3148.3,3.17631]
[1738201030961,0.7875,3148.8,3148.2,3.9331]
[1738201031255,0.05439333,3148.4,3148.2,3.1764]
[1738201031432,0.7875,3148.8,3148.3,3.17625]
[1738201031640,0.05425778,3148.3,3148.2,3.1764]
[1738201031839,0.7875,3148.8,3148.3,3.17624]
[1738201032251,3.176,3148.7,3148.0,3.21572685]
[1738201032427,0.8072,3148.6,3148.3,3.17629]
[1738201032628,0.8072,3148.6,3148.0,0.81275685]
[1738201032866,0.8072,3148.6,3148.2,3.17635]
[1738201033230,3.17611,3148.5,3148.0,3.21575685]
[1738201033430,3.574441,3148.5,3148.0,3.21575685]
[1738201033650,0.8072,3148.6,3148.1,3.17649]
[1738201033854,0.8072,3148.6,3148.1,0.81]
[1738201034066,0.8072,3148.6,3148.3,3.17624]
[1738201034794,0.8072,3148.6,3148.2,3.17632]
[1738201035273,3.98323,3148.6,3148.0,0.03915685]
[1738201035582,3.17634,3148.3,3148.0,0.03915685]
[1738201035786,0.8251,3148.2,3148.0,0.03915685]
[1738201035985,4.0016,3148.2,3148.0,0.03915685]
[1738201036189,4.0016,3148.2,3147.4,0.8196]
[1738201036393,0.8251,3147.6,3147.1,0.005]
[1738201036682,3.17713,3147.5,3147.1,0.005]
[1738201036888,0.8251,3147.6,3147.1,0.005]
[1738201037039,0.8251,3147.8,3147.1,0.005]
[1738201037240,0.8251,3147.8,3147.3,3.17723]
[1738201037592,0.05206547,3147.7,3147.3,3.17723]
[1738201037886,0.05206547,3147.7,3147.1,0.005]
[1738201038062,0.05206547,3147.7,3147.4,3.17716]
[1738201038232,4.00535,3148.0,3147.2,3.17742]
[1738201038433,3.17696,3147.7,3147.1,0.005]
[1738201038660,0.8287,3147.6,3147.1,3.18252]
[1738201038857,0.88041567,3147.6,3147.1,0.005]
[1738201039071,0.88041567,3147.6,3147.2,3.17736]
[1738201039273,0.88041567,3147.6,3147.1,0.005]
[1738201039274,0.55,3147.5,3147.1,0.005]
[1738201039480,3.1785,3146.2,3145.2,3.17944]
[1738201039677,3.17875,3145.9,3145.3,3.17934]
[1738201039875,0.05068674,3145.8,3145.2,3.17943]
[1738201040485,0.05068674,3145.8,3145.3,3.17933]
[1738201040777,3.17875,3145.9,3145.1,0.7669]
[1738201040961,0.0507196,3145.7,3145.1,0.7669]
[1738201041163,0.0506446,3145.8,3145.1,0.7669]
[1738201041370,0.05056987,3145.6,3145.1,0.7669]
[1738201041685,0.05059319,3145.7,3145.2,3.17937]
[1738201041878,0.05051846,3145.5,3145.2,3.17937]
[1738201042071,0.05059797,3145.6,3145.2,3.17937]
[1738201042267,0.05049513,3145.4,3145.3,3.17932]
[1738201042443,3.17871,3146.0,3145.3,3.17932]
[1738201042780,3.17874,3145.9,3145.3,3.17932]
[1738201042974,3.22937982,3145.9,3145.3,3.17932]
[1738201043578,0.05063982,3145.9,3145.8,3.17884]
[1738201043757,3.17816,3146.5,3145.8,3.17884]
[1738201043942,0.0500798,3145.9,3145.8,3.17884]
[1738201044285,3.17816,3146.5,3145.8,3.17884]
[1738201044480,0.394456,3146.4,3145.8,3.17884]
[1738201044691,3.62237321,3146.4,3145.8,3.17884]
[1738201045864,3.22791721,3146.4,3145.8,3.17884]
[1738201046144,3.22791721,3146.4,3145.7,0.7983]
[1738201046350,3.17837,3146.3,3145.7,3.97722]
[1738201046570,0.04955441,3146.2,3145.8,3.17883]
[1738201046974,3.17816,3146.5,3145.8,3.17883]
[1738201047285,3.890421,3146.5,3145.8,3.17883]
[1738201047679,0.04965721,3146.4,3146.0,3.17856]
[1738201048081,0.04965721,3146.4,3146.2,3.17842]
[1738201048287,3.17765,3147.0,3145.7,0.7983]
[1738201048288,0.804,3147.0,3146.6,3.17802]
[1738201048659,0.05044474,3146.9,3146.6,3.17802]
[1738201049077,0.05044474,3146.9,3146.4,4.01016]
[1738201049265,0.05044474,3146.9,3146.5,3.17812]
[1738201050075,0.05044474,3146.9,3146.7,3.17793]
[1738201050385,3.17734,3147.3,3146.7,3.17793]
[1738201050552,0.05048456,3146.8,3146.5,3.17812]
[1738201050993,3.17785,3146.8,3146.1,3.98819]
[1738201051177,3.1781,3146.6,3145.9,3.17867]
[1738201051382,3.17814,3146.5,3145.9,3.17867]
[1738201051677,3.22862688,3146.5,3145.9,3.17867]
[1738201051882,3.94978957,3146.5,3145.9,3.17867]
[1738201052254,0.77164957,3146.5,3146.0,3.17857]
[1738201053089,0.77164957,3146.5,3145.9,3.17867]
[1738201053387,3.17815,3146.5,3145.9,3.17867]
[1738201053600,0.8049,3146.7,3145.9,3.17867]
[1738201053899,0.05031202,3146.4,3146.2,3.99563]
[1738201054069,0.7892,3147.0,3146.5,3.17811]
[1738201055267,0.7892,3147.0,3146.3,3.17833]
[1738201055463,1.185879,3147.0,3146.5,3.17812]
[1738201055870,4.363519,3147.0,3146.3,6.35659]
[1738201056070,4.363519,3147.0,3146.3,3.17826]
[1738201056690,1.185879,3147.0,3146.5,3.17809]
[1738201057115,1.185879,3147.0,3146.6,3.17799]
[1738201057296,0.7892,3147.0,3146.5,3.17809]
[1738201058118,0.0075,3146.8,3145.9,0.798]
[1738201058298,0.8131,3146.0,3145.3,3.17931]
[1738201058502,3.1788,3145.9,3145.3,3.17931]
[1738201058974,3.17888,3145.8,3145.1,3.17953]
[1738201059174,0.8131,3145.7,3144.9,3.17972]
[1738201059428,0.8131,3145.7,3145.0,3.17957]
[1738201059429,3.99204,3145.7,3145.0,3.17957]
[1738201059628,3.17906,3145.6,3145.0,3.17957]
[1738201060000,0.0075,3145.5,3144.8,0.1640813]
[1738201060317,3.17914,3145.5,3144.8,0.1640813]
[1738201060488,3.17914,3145.5,3144.9,3.17968]
[1738201060682,3.17914,3145.5,3144.8,3.3439113]
[1738201060884,3.17936,3145.3,3144.8,0.1640813]
[1738201061118,3.89627,3145.5,3144.8,3.3438513]
[1738201061313,3.89627,3145.5,3144.9,3.17973]
[1738201062014,0.71712,3145.5,3145.0,3.17961]
[1738201062905,0.8131,3145.7,3145.0,3.17961]
[1738201063080,0.8131,3145.7,3145.2,3.17941]
[1738201063280,3.99205,3145.7,3145.1,3.17952]
[1738201063480,3.17905,3145.6,3145.0,3.17961]
[1738201063779,0.5575,3145.6,3144.8,0.1640813]
[1738201063978,4.52895,3144.9,3144.8,0.1640813]
[1738201064185,8.299808,3144.9,3144.8,0.1640813]
[1738201065493,8.307308,3144.9,3144.8,0.1640813]
[1738201067017,8.299808,3144.9,3144.8,0.1640813]
[1738201067419,8.34619801,3144.9,3144.8,0.1640813]
[1738201070297,8.35369801,3144.9,3144.8,0.1640813]
[1738201073934,8.35369801,3144.9,3144.8,1.3e-06]
[1738201075500,3.18113,3143.6,3143.0,3.22080915]
[1738201075849,0.04335516,3143.5,3143.2,3.18145]
[1738201076026,0.04335516,3143.5,3143.3,0.7729]
[1738201076203,3.18101,3143.7,3143.3,0.7729]
[1738201076399,0.04326093,3143.4,3143.3,0.7729]
[1738201076600,3.18105,3143.7,3143.3,0.7729]
[1738201076801,3.22461093,3143.4,3143.0,0.03921915]
[1738201077009,3.18135,3143.4,3143.0,0.03921915]
[1738201077204,3.2245935,3143.3,3143.0,0.03921915]
[1738201078311,3.17972,3145.0,3144.1,0.8154]
[1738201078541,0.8045,3145.2,3144.2,3.18045]
[1738201078698,3.17973,3145.0,3144.3,0.399585]
[1738201079039,3.17992,3144.8,3144.1,0.8154]
[1738201080317,3.18029,3144.4,3143.6,3.18104]
[1738201080519,3.18029,3144.4,3143.5,3.18109]
[1738201081037,3.18046,3144.2,3143.4,3.18117]
[1738201081203,0.55,3144.1,3143.4,3.18117]
[1738201081535,0.0075,3144.3,3143.4,3.18117]
[1738201081728,3.95836,3144.5,3143.7,3.18094]
[1738201082329,0.5575,3144.4,3143.8,3.18084]
[1738201082639,0.5575,3144.4,3143.7,3.18094]
[1738201082838,3.18046,3144.2,3143.1,0.779]
[1738201083039,3.18046,3144.2,3143.0,0.03921915]
[1738201083040,0.0075,3143.8,3143.0,0.03921915]
[1738201083340,0.0075,3143.6,3142.3,0.7647]
[1738201083643,0.7975,3143.2,3142.3,0.7647]
[1738201083840,3.18194,3142.8,3142.1,0.005]
[1738201084042,0.8287,3142.4,3142.1,0.005]
[1738201084228,0.8287,3142.8,3142.2,3.18238]
[1738201084606,3.73998,3142.2,3142.1,0.005]
[1738201084938,1.52975,3142.8,3142.1,0.005]
[1738201085141,3.18199,3142.7,3142.1,0.005]
[1738201085300,0.5575,3142.6,3142.1,0.005]
[1738201085638,3.73959,3142.6,3142.1,0.005]
[1738201085839,4.01059,3142.8,3142.1,0.005]
[1738201085840,0.03204274,3142.5,3142.1,0.005]
[1738201086245,0.8287,3142.8,3142.1,0.005]
[1738201086246,3.99878,3142.2,3142.1,0.005]
[1738201086406,2.091914,3142.2,3142.1,0.005]
[1738201086608,0.03176672,3142.2,3142.1,0.005]
[1738201087117,0.03160305,3142.2,3142.1,0.005]
[1738201087443,6.99842,3142.6,3142.1,0.005]
[1738201087744,0.55,3142.5,3142.1,0.005]
[1738201087931,0.03153576,3142.4,3142.1,0.005]
[1738201088135,0.0075,3142.8,3142.2,3.18246]
[1738201088332,0.03175829,3142.7,3142.1,4.04197634]
[1738201088506,0.03175829,3142.7,3142.1,3.72320134]
[1738201089413,3.18185,3142.9,3142.1,3.72320134]
[1738201089733,0.0075,3143.0,3142.1,3.72320134]
[1738201089914,0.03183317,3142.9,3142.3,3.18231]
[1738201090110,0.03183317,3142.9,3142.1,6.90577134]
[1738201090111,0.5575,3142.8,3142.1,0.005]
[1738201090337,3.73998,3142.2,3142.1,0.005]
[1738201090510,3.73998,3142.2,3141.7,0.1640813]
[1738201090511,7.23375389,3142.2,3141.7,0.1640813]
[1738201090721,7.55498,3141.8,3141.7,0.1640813]
[1738201090943,7.58656164,3141.8,3141.7,0.1640813]
[1738201093121,7.57906164,3141.8,3141.7,0.1640813]
[1738201093561,1.39618164,3141.8,3141.7,0.1640813]
[1738201093723,0.03158164,3141.8,3141.7,0.1640813]
[1738201093922,3.1825,3142.2,3141.7,0.49879443]
[1738201094117,0.03116562,3142.1,3141.7,0.49879443]
[1738201094321,0.03116562,3142.1,3141.8,3.18288]
[1738201094522,0.0075,3142.5,3141.7,0.49879443]
[1738201094523,3.0075,3142.5,3141.7,0.49879443]
[1738201094873,0.03127798,3142.4,3142.0,3.1826]
[1738201095075,0.03127798,3142.4,3142.0,3.819208]
[1738201095219,3.18958,3142.6,3141.9,3.18269]
[1738201095539,0.0075,3142.6,3142.0,3.18268]
[1738201095853,0.0075,3142.6,3141.7,0.49879443]
[1738201095854,3.21358543,3142.5,3141.7,0.9427813]
[1738201096159,3.74038,3141.8,3141.7,0.1640813]
[1738201096360,3.77169306,3141.8,3141.7,0.1640813]
[1738201096720,4.46713637,3141.8,3141.7,0.1640813]
[1738201097351,5.26243637,3141.8,3141.7,0.1640813]
[1738201097655,8.26243637,3141.8,3141.7,0.1640813]
[1738201098052,5.26243637,3141.8,3141.7,0.1640813]
[1738201098619,4.56699306,3141.8,3141.7,0.1640813]
[1738201098823,3.77169306,3141.8,3141.7,0.1640813]
[1738201100421,0.03131306,3141.8,3141.7,0.1640813]
[1738201100846,3.18271,3142.0,3141.7,0.1640813]
[1738201101058,0.03128979,3141.8,3141.7,0.1640813]
[1738201101235,3.50428798,3141.8,3141.7,0.1640813]
[1738201101423,4.09307777,3141.8,3141.7,0.1640813]
[1738201102946,0.03878979,3141.8,3141.7,0.1640813]
[1738201103147,6.22166979,3141.8,3141.7,0.1640813]
[1738201103373,7.52516979,3141.8,3141.7,0.1640813]
[1738201104366,7.53266979,3141.8,3141.7,0.1640813]
[1738201107370,7.52516979,3141.8,3141.7,0.1640813]
[1738201107558,3.22166979,3141.8,3141.7,0.1640813]
[1738201107779,3.21416979,3141.8,3141.7,0.1640813]
[1738201109237,4.41136577,3141.8,3141.7,0.1640813]
[1738201109571,7.41886577,3141.8,3141.7,0.1640813]
[1738201109777,8.18386577,3141.8,3141.7,0.1640813]
[1738201113083,8.18386577,3141.8,3141.7,1.3e-06]
[1738201114353,8.17636577,3141.8,3141.7,1.3e-06]
[1738201114561,6.22166979,3141.8,3141.7,1.3e-06]
[1738201114754,3.22166979,3141.8,3141.7,1.3e-06]